Workbook

Sheet Inizio
A2: Guida introduttiva alle formule
A3: Bastano pochi semplici passaggi per iniziare a creare formule e funzioni in Excel, l'app per fogli di calcolo più famosa al mondo.
A4: Per tornare all'inizio, premi CTRL+HOME. Per iniziare il tour, premi CTRL+PGGIÙ.

Sheet Concetti di base
A1: Concetti di base: matematica con Excel
A2: In Excel si può sommare, sottrarre, moltiplicare e dividere senza usare le funzioni predefinite. Basta usare alcuni operatori di base: +, -, *, /. Tutte le formule iniziano con un segno di uguale (=). | C2: Numeri da usare: | E2: Operazione: | F2: Formule: | G2: Risposte:
A3: Per sommare, seleziona la cella F3, digita =C3+C4, quindi premi INVIO. | C3: 1 | E3: Addizione (+) | G3: =C3+C4 -> 3
A4: Per sottrarre, seleziona la cella F4, digita =C3-C4, quindi premi INVIO. | C4: 2 | E4: Sottrazione (-) | G4: =C3-C4 -> -1
A5: Per moltiplicare, seleziona la cella F5, digita =C3*C4, quindi premi INVIO. | E5: Moltiplicazione (*) | G5: =C3*C4 -> 2
A6: Per dividere, seleziona la cella F6, digita =C3/C4, quindi premi INVIO. | E6: Divisione (/) | G6: =C3/C4 -> 0.5
A7: Prova: cambia i numeri nelle celle C3 e C4 e osserva come i risultati delle formule cambiano automaticamente. | E7: Potenza (^) | G7: =C3^C4 -> 1
A8: CREDITO EXTRA: Per elevare un valore a una potenza, usa il simbolo dell'accento circonflesso (^), ad esempio =A1^A2. Per immetterlo, premi MAIUSC+ì. Nella cella F7 immetti =C3^C4.
A9: Altri dettagli
A10: Passaggio successivo
A11: Altre informazioni su formule, celle e intervalli
A12: Excel è costituito da singole celle raggruppate in righe e colonne. Le righe sono numerate, le colonne sono identificate da lettere. Sono presenti più di 1 milione di righe e 16.000 colonne e si possono inserire formule in qualsiasi di esse.
A13: Le formule possono contenere riferimenti di cella, intervalli di riferimenti di cella, operatori e costanti. Ecco alcuni esempi di formule: =A1+B1 =10+20 =SOMMA(A1:A10)
A14: Nel terzo esempio abbiamo usato la funzione SOMMA. Una funzione è un comando predefinito che prende uno o più valori, li calcola in un certo modo e restituisce un risultato. Ad esempio, la funzione SOMMA prende i riferimenti di cella o gli intervalli di celle specificati e ne calcola il totale. In questo esempio prende le celle da A1 a A10 e ne calcola il totale. Excel include più di 400 funzioni, disponibili nella scheda Formule.
A15: Le formule con funzioni iniziano con un segno di uguale, seguito dal nome della funzione con i relativi argomenti (i valori usati dalla funzione per il calcolo) racchiusi tra parentesi.
A16: Per confermare una formula bisogna premere INVIO. A questo punto viene eseguito il calcolo della formula e nella cella viene visualizzato il risultato. Per vedere la formula vera e propria, osserva la barra della formula sotto la barra multifunzione oppure premi F2 per attivare la modalità di modifica, che consente di visualizzare la formula nella cella. Premi di nuovo INVIO per completare la formula e calcolare il risultato.
A17: Alcune spiegazioni sulle formule
A18: =10+20 è una formula in cui 10 e 20 sono costanti e il segno + è l'operatore.
A19: =SOMMA(A1:A10) è una formula in cui SOMMA è il nome della funzione, le parentesi di apertura e chiusura racchiudono gli argomenti della formula e A1:A10 è l'intervallo di celle per la funzione.
A20: =SOMMA(A1:A10;C1:C10) è una formula in cui SOMMA è il nome della funzione, le parentesi di apertura e chiusura racchiudono gli argomenti della formula e A1:A10;C1:C10 sono gli intervalli di celle per la funzione separati da un punto e virgola.
A21: INFORMAZIONI UTILI: Le costanti sono i valori che vengono immessi nelle celle o nelle formule. Anche se =10+20 può produrre lo stesso risultato di =A1+B1, è buona norma evitare le costanti. Perché? Poiché per vedere una costante può essere necessario selezionare la cella e cercarla. Di conseguenza può risultare difficile da cambiare in un secondo momento. È molto più semplice inserire le costanti nelle celle, dove possono essere modificate facilmente e aggiunte alle formule mediante riferimento. Ad esempio: seleziona la cella gialla con il numero 12 qui sotto. Come vedi, abbiamo usato la funzione SOMMA con un intervallo di celle. Non abbiamo digitato "4" o "8" direttamente nella formula.
A22: Indietro
A23: Avanti
A24: Altre informazioni sul Web
A25: Usare Excel come calcolatrice
A26: Panoramica delle formule in Excel
A27: Funzioni di Excel (in base alla categoria)
A28: Funzioni di Excel (in ordine alfabetico)
A29: Formazione gratuita su Excel disponibile online
J40: Valori
J41: 4
J42: 8
J43: =SUM(J41:J42) -> 12

Sheet Introduzione alle funzioni
A1: Introduzione alle funzioni
A2: Con le funzioni si possono svolgere molte azioni, ad esempio eseguire operazioni matematiche, cercare valori o persino calcolare date e ore. Proviamo a sommare valori in diversi modi con la funzione SOMMA. | C2: Frutta | D2: Quantità | F2: Carne | G2: Quantità
A3: Nella colonna Quantità per Frutta (cella D7), immetti =SOMMA(D3:D6) oppure digita =SOMMA( e seleziona l'intervallo con il mouse, quindi premi INVIO. Vengono sommati i valori presenti nelle D3, D4, D5 e D6. La risposta dovrebbe essere 170. | C3: Mele | D3: 50 | F3: Manzo | G3: 50
A4: Ora proviamo Somma automatica. Seleziona la cella sotto la colonna relativa a Carne (cella G7), quindi passa a Formule > Somma automatica e seleziona SOMMA. La formula verrà inserita automaticamente. Premi INVIO per confermarla. La funzionalità Somma automatica ha tutte le funzioni più comuni. | C4: Arance | D4: 20 | F4: Pollo | G4: 30
A5: Ecco una scelta rapida da tastiera specifica. Seleziona la cella D15, premi ALT= e quindi INVIO. La funzione SOMMA viene immessa automaticamente. | C5: Banane | D5: 60 | F5: Maiale | G5: 10
A6: Altri dettagli | C6: Limoni | D6: 40 | F6: Pesce | G6: 50
A7: CREDITO EXTRA Prova a usare la funzione CONTA.NUMERI con uno dei metodi già sperimentati. La funzione CONTA.NUMERI conta il numero di celle che contengono numeri all'interno di un intervallo. | C7: SOMMA > | D7: =SUM(D3:D6) -> 170 | F7: SOMMA >
A8: Passaggio successivo
A9: Altre informazioni sulle funzioni | C9: Articolo | D9: Quantità | F9: Articolo | G9: Quantità
A10: Passa alla scheda Formule e scorri la Libreria di funzioni, in cui le funzioni sono elencate per categoria, ad esempio Testo, Data e ora e così via. Inserisci funzione consente di cercare le funzioni per nome e avviare una procedura guidata per creare la formula. Quando inizi a digitare il nome di una funzione dopo aver premuto =, Excel avvia Intellisense, che elenca tutte le funzioni che iniziano con le lettere digitate. Quando trovi quella che vuoi, premi TAB. Excel completa automaticamente il nome della funzione e inserisce la parentesi di apertura. Mostra anche gli argomenti facoltativi e obbligatori. Esaminiamo in dettaglio alcune funzioni. La funzione SOMMA è strutturata in questo modo: | C10: Pane | D10: 50 | F10: Pane | G10: 50
A11: Se la funzione SOMMA potesse parlare, direbbe: "Restituisci la somma di tutti i valori nelle celle da D35 a D38 e tutta la colonna H". SOMMA è il nome della funzione, D35:D38 è il primo argomento intervallo, che in genere è necessario, e H:H è il secondo argomento intervallo; i due sono separati da una virgola. Ora proviamone una che non richiede argomenti. | C11: Ciambelle | D11: 100 | F11: Ciambelle | G11: 100
A12: La funzione OGGI restituisce la data corrente. Viene aggiornata automaticamente quando Excel ricalcola. | C12: Biscotti | D12: 40 | F12: Biscotti | G12: 40
A13: GUARDA QUI Seleziona queste celle. Nell'angolo in basso a destra della finestra di Excel troverai SOMMA: 170 nella barra inferiore. Si chiama Barra di stato e rappresenta semplicemente un altro modo per trovare rapidamente un totale e altri dettagli su una cella o un intervallo. | C13: Torte | D13: 50 | F13: Torte | G13: 50
A14: DETTAGLIO IMPORTANTE Fai doppio clic in questa cella. Noterai il valore 100 verso la fine. Anche se è possibile inserire numeri in una formula come questa, non è consigliabile farlo a meno che non sia assolutamente necessario. Si tratta di un valore costante ed è facile dimenticarsi della sua presenza. È preferibile fare riferimento a un'altra cella, come la cella F51. In questo modo sarà più visibile e non nascosto all'interno di una formula. | C14: Crostate | D14: 20 | F14: Crostate | G14: 20
A15: Altre informazioni sul Web | C15: SOMMA > | F15: CONTA.NUMERI >
A16: Informazioni complete sulla funzione SOMMA
A17: Usare Somma automatica per sommare numeri
A18: Informazioni complete sulla funzione CONTA.NUMERI
A19: Formazione gratuita su Excel disponibile online
A20: Torna all'inizio
A21: Passaggio successivo
C34: Frutta | D34: Quantità
C35: Mele | D35: 50
C36: Arance | D36: 20
C37: Banane | D37: 60
C38: Limoni | D38: 40
C39: SOMMA > | D39: =SUM(D35:D38) -> 170
C44: Articolo | D44: Quantità
C45: Automobili | D45: 20
C46: Autocarri | D46: 10
C47: Biciclette | D47: 10
C48: Pattini | D48: 40
D50: Totale: | F50: Valore aggiuntivo | G50: Nuovo totale
D51: =SUM(D45:D48,100) -> 180 | F51: 100 | G51: =SUM(D45:D48,F51) -> 180

Sheet MEDIA
A1: Funzione MEDIA
A2: La funzione MEDIA consente di ottenere la media dei numeri in un intervallo di celle. | C2: Frutta | D2: Quantità | F2: Carne | G2: Quantità
A3: Seleziona la cella D7, quindi usa Somma automatica per aggiungere una funzione MEDIA. | C3: Mele | D3: 50 | F3: Manzo | G3: 50
A4: Ora seleziona la cella G7 e immetti una funzione MEDIA digitando =MEDIA(G3:G6). | C4: Arance | D4: 20 | F4: Pollo | G4: 30
A5: Nella cella D15 puoi usare la creazione guidata Somma automatica oppure immettere manualmente una funzione MEDIA. | C5: Banane | D5: 60 | F5: Maiale | G5: 10
A6: GUARDA QUI Seleziona un intervallo di numeri, quindi osserva la media immediata riportata sulla barra di stato. | C6: Limoni | D6: 40 | F6: Pesce | G6: 50
A7: Attiva il foglio precedente | C7: MEDIA > | F7: MEDIA >
A8: Vai al foglio successivo
A9: CREDITO EXTRA Prova a usare MEDIANA o MODA qui. MEDIANA fornisce il valore mediano del set di dati, mentre MODA fornisce quello con più occorrenze. | C9: Articolo | D9: Quantità | F9: Articolo | G9: Quantità
A10: Collegamenti ad altre informazioni sul Web | C10: Pane | D10: 50 | F10: Pane | G10: 50
A11: Seleziona per ottenere informazioni complete dal Web sulla funzione MEDIA | C11: Ciambelle | D11: 100 | F11: Ciambelle | G11: 100
A12: Seleziona per ottenere informazioni complete dal Web sulla funzione MEDIANA | C12: Biscotti | D12: 40 | F12: Biscotti | G12: 40
A13: Seleziona per ottenere informazioni complete dal Web sulla funzione MODA | C13: Torte | D13: 50 | F13: Torte | G13: 50
A14: Seleziona per ottenere informazioni sulle risorse di formazione gratuita su Excel sul Web | C14: Crostate | D14: 20 | F14: Crostate | G14: 20
C15: MEDIA >

Sheet MIN e MAX
A1: Funzioni MIN e MAX
A2: La funzione MIN consente di ottenere il numero minimo in un intervallo di celle. | C2: Frutta | D2: Quantità | F2: Carne | G2: Quantità
A3: La funzione MAX consente di ottenere il numero massimo in un intervallo di celle. | C3: Mele | D3: 50 | F3: Manzo | G3: 50
A4: Seleziona la cella D7, quindi usa la procedura guidata Somma automatica per aggiungere una funzione MIN. | C4: Arance | D4: 20 | F4: Pollo | G4: 30
A5: Ora seleziona la cella G7 e immetti una funzione MAX digitando =MAX(G3:G6). | C5: Banane | D5: 60 | F5: Maiale | G5: 10
A6: Nella cella D15 puoi usare la creazione guidata Somma automatica oppure immettere manualmente una funzione MIN o MAX. | C6: Limoni | D6: 40 | F6: Pesce | G6: 50
A7: Altre informazioni sul Web | C7: MIN > | F7: MAX >
A8: Informazioni complete sulla funzione MIN
A9: Informazioni complete sulla funzione MAX | C9: Articolo | D9: Quantità | F9: Articolo | G9: Quantità
A10: Formazione gratuita su Excel disponibile online | C10: Pane | D10: 50 | F10: Pane | G10: 50
A11: INFORMAZIONI UTILI È possibile usare MIN o MAX con più intervalli o valori per visualizzare il maggiore o il minore di tali valori, ad esempio =MIN(A1:A10;B1:B10) oppure =MAX(A1:A10;B1), dove B1 contiene un valore soglia, come 10, nel qual caso la formula non restituirebbe mai un risultato inferiore a 10. | C11: Ciambelle | D11: 100 | F11: Ciambelle | G11: 100
C12: Biscotti | D12: 40 | F12: Biscotti | G12: 40
C13: Torte | D13: 50 | F13: Torte | G13: 50
C14: Crostate | D14: 20 | F14: Crostate | G14: 20
C15: MIN o MAX > | G15: =MIN(G10:G14,10) -> 10
A19: È possibile usare MIN o MAX con più intervalli o valori per visualizzare il maggiore o il minore di tali valori, ad esempio =MIN(A1:A10;B1:B10) oppure =MAX(A1:A10;10).

Sheet Data e ora
A1: Funzioni di data
A2: Excel può fornire la data corrente, in base alle impostazioni internazionali del computer. È anche possibile sommare e sottrarre le date.
A3: Osserviamo la funzione OGGI, che visualizza la data corrente. Si tratta di funzioni attive, o volatili, per cui se la cartella di lavoro viene aperta domani, sarà visualizzata la data di domani. Immetti =OGGI() nella cella D6.
A4: Sottrarre date: immetti il tuo prossimo compleanno nel formato GG/MM/AA nella cella D7 e osserva come Excel ti indica il numero di giorni rimanenti usando =D7-D6 nella cella D8.
A5: Sommare date: supponiamo di voler sapere la data di scadenza di una bolletta o quando devi restituire un libro alla biblioteca. Per scoprirlo, puoi aggiungere giorni a una data. Nella cella D10 immetti un numero casuale di giorni. Nella cella D11 abbiamo sommato =D6+D10 per calcolare la data di scadenza a partire da oggi. | C5: Funzioni di data
A6: INFORMAZIONI UTILI Excel mantiene le date e le ore in base al numero di giorni a partire dal 1 gennaio 1900. Le ore vengono mantenute in parti frazionarie della giornata in base ai minuti. Quindi, 01/01/2017 12:30 in realtà è memorizzata come 42736,5208. Se la data o l'ora viene visualizzata sotto forma di numeri di questo tipo, premi CTRL+1 > Numero e seleziona un formato Data o Ora. | C6: Data odierna: | F6: =IF(D6=TODAY(),"Ben fatto!","") -> 
A7: DETTAGLIO IMPORTANTE Se non vuoi visualizzare un numero negativo perché non hai ancora immesso il tuo compleanno, puoi usare la funzione SE in questo modo: =SE(D7="";"";D7-D6), che indica "SE D7 è uguale a niente, non mostrare niente, altrimenti mostra D7 meno D6". | C7: Tuo compleanno:
A8: Funzioni di ora | C8: Giorni mancanti al compleanno: | D8: =D7-D6 -> 0
A9: Excel può fornire l'ora corrente, in base alle impostazioni internazionali del computer. È anche possibile sommare e sottrarre le ore. Ad esempio, può essere necessario tenere traccia del numero di ore lavorate da un dipendente ogni settimana e calcolare la retribuzione e lo straordinario.
A10: Nella cella D28 immetti =ADESSO(), che visualizza l'ora corrente e viene aggiornata ogni volta che Excel la calcola. Per cambiare il formato dell'ora, scegli CTRL+1 > Numero > Ora e seleziona il formato che preferisci. | C10: Giorni di tolleranza:
A11: Sommare le ore di diversi orari: nella cella D36 abbiamo immesso =((D35-D32)-(D34-D33))*24, che calcola le ore di inizio e fine di un dipendente e quindi sottrae il tempo trascorso a pranzo. La parte *24 alla fine della formula converte in ore la parte frazionaria della giornata usata da Excel. Sarà però necessario formattare la cella come Numero. A questo scopo, passa a Home > Formato > Celle (CTRL+1) > Numero > Numero > 2 decimali. | C11: Scadenza fattura: | D11: =D6+D10 -> 00:00:00
A12: Se questa formula potesse parlare, direbbe: "sottrai Ora uscita da Ora entrata, quindi sottrai le ore Uscita/Rientro pranzo e moltiplica per 24 per convertire il tempo frazionario di Excel in ore" oppure =((Ora uscita - Ora entrata)-(Uscita pranzo - Rientro pranzo))*24.
A13: Indietro
A14: Avanti
A15: Altre informazioni sul Web
A16: Informazioni complete sulla funzione OGGI
A17: Informazioni complete sulla funzione ADESSO
A18: Informazioni complete sulla funzione DATA
A19: Formazione gratuita su Excel disponibile online
C27: Funzioni di ora
C28: Ora corrente:
C31: Ore giornaliere lavorate
C32: Ora entrata: | D32: 08:00:00
C33: Uscita pranzo: | D33: 12:00:00
C34: Rientro pranzo: | D34: 13:00:00
C35: Ora uscita: | D35: 17:00:00
C36: Totale ore: | D36: =((D35-D32)-(D34-D33))*24 -> 8
C45: Data e ora statiche
C46: Data: | D46: 2017-09-27
C47: Ora: | D47: 08:52:00

Sheet Unire testo e numeri
A1: Unione del testo contenuto in celle diverse
A2: In Excel capita spesso di dover unire il testo presente in celle diverse. Un esempio molto comune è un elenco di nomi e cognomi da combinare sotto forma di nome, cognome oppure nome completo. In Excel si può fare usando il simbolo della e commerciale (&), che puoi inserire con MAIUSC+6. | C2: Nome | D2: Cognome | E2: Cognome, Nome | F2: Nome completo
A3: Nella cella E3 immetti =D3&C3 per unire i cognomi e i nomi. | C3: Olga | D3: Panicucci | E3: =D3&", "&C3 -> Panicucci, Olga | F3: =C3&" "&D3 -> Olga Panicucci
A4: PanicucciOlga non è il risultato ideale. Dobbiamo aggiungere una virgola e uno spazio. A questo scopo usiamo le virgolette per creare una nuova stringa di testo. Questa volta immetti =D3&", "&C3. La parte &", "& consente di unire una virgola e uno spazio al testo nelle celle. | C4: Pio | D4: Udinesi
A5: Per creare il nome completo, uniamo prima di tutto il nome e il cognome, ma usando uno spazio senza virgola. In F3 immetti =C3&" "&D3. | C5: Albertino | D5: Mazzanti
A6: Altri dettagli | C6: Fiamma | D6: Greco
A7: Avanti | C7: Carmelo | D7: Barese
A8: Uso di testo e numeri insieme | C8: Nazzareno | D8: Romani
A9: Ora usiamo il simbolo & per unire testo e numeri, non solo testo e testo Osserva le celle C28:D29. Vedi che la data e le ore si trovano in celle separate? Puoi unirle con il simbolo & come vedrai nelle celle C32:C33, ma il risultato non è ideale. Non sapendo come vuoi formattare i numeri, Excel usa il formato più basilare, che in questo caso è la data seriale. Dobbiamo indicare esplicitamente a Excel come formattare la parte numerica della formula, in modo che venga visualizzata come vuoi nella stringa di testo risultante. Per farlo, puoi usare la funzione TESTO e un codice di formato. | C9: Cataldo | D9: Capon
A10: Nella cella C36 immetti =C28&" "&TESTO(D28;"GG/MM/AAAA"). GG/MM/AAAA è il codice di formato italiano per giorno/mese/anno, ad esempio 25/09/2017. | C10: Martina | D10: Milani
A11: Nella cella C37 immetti =C29&" "&TESTO(D29;"H:MM"). H:MM è il codice di formato italiano per ore:minuti, ad esempio 13:30.
A12: GUARDA QUI Le formule, soprattutto quelle di grandi dimensioni, possono risultare difficile da leggere, ma è possibile separare le parti con spazi, come in questo esempio: =C28 & " " & TESTO(D28;"GG/MM/AAAA")
A13: CURIOSITÀ Se non sai quale codice di formato usare, puoi scegliere CTRL+1 > Numero per formattare le celle come preferisci. Seleziona l'opzione Personalizzato. Puoi copiare nella formula il codice di formato visualizzato.
A14: Altre informazioni sul Web
A15: Informazioni complete sulla funzione TESTO
A16: Combinare testo e numeri
A17: Formazione gratuita su Excel disponibile online
C27: Usare testo e numeri
C28: Data odierna: | D28: =TODAY() -> 2019-10-10
C29: Ora corrente: | D29: =NOW() -> 43748.56142
C31: Unione di testo e numeri
C32: =C28&" "&D28 -> Data odierna: 43748
C33: =C29&" "&D29 -> Ora corrente: 43748,5614166667
C35: Formattazione di testo e numeri
C36: =C28 &" "& TEXT(D28,"GG/MM/AAAA") -> Data odierna: 10/10/2019
C37: =C29&" "&TEXT(D29,"H:MM") -> Ora corrente: 13:28

Sheet Istruzioni SE
A1: Istruzioni SE
A2: Le istruzioni SE permettono di eseguire confronti logici tra condizioni. Un'istruzione SE in genere indica di eseguire una determinata operazione se una condizione è vera e di eseguire un'altra operazione in caso contrario. Le formule possono restituire testo, valori o altri calcoli.
A3: Nella cella D9 immetti =SE(C9="Mela";VERO;FALSO). La risposta corretta è VERO.
A4: Copia D9 in D10. Qui la risposta dovrebbe essere FALSO perché un'arancia non è una mela.
A5: Prova un altro esempio osservando la formula nella cella D12. Abbiamo già inserito =SE(C12<100;"Minore di 100";"Maggiore di o uguale a 100"). Cosa succede se si immette un numero maggiore di 100 nella cella C12?
A6: DETTAGLIO IMPORTANTE VERO e FALSO sono diverse dalle altre parole usate nelle formule di Excel in quanto non è necessario racchiuderle tra virgolette e vengono formattate automaticamente in maiuscolo. Anche i numeri non devono necessariamente essere racchiusi tra virgolette. Il testo normale come Sì o No, invece, deve essere racchiuso tra virgolette in questo modo: =SE(C9="Mela";"Sì";"No")
A7: Altri dettagli
A8: Avanti | C8: Istruzioni SE
A9: Istruzione SE con un'altra funzione | C9: Mela
A10: Le istruzioni SE possono anche forzare l'esecuzione di altri calcoli se è soddisfatta una determinata condizione. Qui valuteremo una cella per stabilire se deve essere addebitata l'IVA e per calcolarla, se la condizione è vera. | C10: Arancia
A11: Nella cella F33 abbiamo inserito =SE(E33="Sì";F31*IVA;0), con l'IVA configurata come intervallo denominato con il valore 0,0825. La formula indica: se la cella E33 equivale a Sì, moltiplica la cella F31 per l'IVA, altrimenti restituisci il valore 0. Prova a specificare No al posto di Sì nella cella E33 per vedere come cambia il calcolo.
A12: Abbiamo quindi aggiunto un'istruzione SE per calcolare le spese di spedizione, se necessarie. Nella cella F35 vedrai =SE(E35="Sì";SOMMA(D28:D29)*1,25;0). Questo significa: "se la cella E35 contiene Sì, moltiplica per 1,25 la somma della colonna Quantità nella tabella soprastante, altrimenti restituisci il valore 0". | C12: 50 | D12: =IF(C12<100,"Minore di 100","Maggiore di 100") -> Minore di 100
A13: Quindi, sostituisci il valore 1,25 nella formula nella cella F35 con "Spedizione". Quando inizi a digitare, la funzione di correzione automatica di Excel dovrebbe trovare automaticamente la voce. Quando accade, premi TAB per immetterla. Questo è un intervallo denominato che è stato immesso da Formule > Definisci nome. A questo punto, se è necessario modificare le spese di spedizione, sarà sufficiente farlo in un unico posto e usare il nome Spedizione ovunque nella cartella di lavoro.
A14: INFORMAZIONI UTILI Quando si crea una formula, Excel inserisce automaticamente bordi colorati intorno a tutti gli intervalli a cui viene fatto riferimento nella formula e gli intervalli corrispondenti nella formula saranno dello stesso colore. Per osservare questo effetto, seleziona la cella F33 e premi F2 per modificare la formula.
A15: L'ESPERTO SUGGERISCE Gli intervalli denominati consentono di definire i termini o i valori in un'unica posizione per poterli riutilizzare in una cartella di lavoro. Per vedere tutti gli intervalli denominati usati in questa cartella di lavoro, scegli Formule > Gestione nomi. Fai clic qui per altre informazioni.
A16: Indietro
A17: Avanti
A18: Altre informazioni sul Web
A19: Informazioni complete sulla funzione SE
A20: Informazioni complete sulla funzione PIÙ.SE
A21: Istruzioni SE avanzate
A22: Formazione gratuita su Excel disponibile online
C27: Articolo | D27: Quantità | E27: Costo | F27: Totale
C28: Widget | D28: 2 | E28: € 9.76 | F28: ='Istruzioni SE'!$E$28:$E$29*'Istruzioni SE'!$D$28:$D$29 -> € 19.52
C29: Oggetto | D29: 3 | E29: € 3.42 | F29: ='Istruzioni SE'!$E$28:$E$29*'Istruzioni SE'!$D$28:$D$29 -> € 10.26
D31: Subtotale | E31: =SUM('Istruzioni SE'!$E$28:$E$29) -> € 13.18 | F31: =SUM('Istruzioni SE'!F28:F29) -> € 29.78
D33: IVA? | E33: Sì | F33: =IF(E33="Sì",F31*IVA,0) -> € 2.46
D35: Spedizione? | E35: Sì | F35: =IF(E35="Sì",SUM(D28:D29)*1.25,0) -> € 6.25
D37: Totale | F37: =SUM(F33,F31,F35) -> € 38.48

Sheet CERCA.VERT
A1: CERCA.VERT
A2: CERCA.VERT è una delle funzioni più usate in Excel. CERCA.VERT consente di cercare un valore in una colonna a sinistra, quindi restituisce le informazioni in un'altra colonna a destra se trova una corrispondenza. CERCA.VERT dice:
A3: =CERCA.VERT(A1;B:C;2;FALSO)
A4: Cosa vuoi cercare?
A5: Se lo trovi, quante colonne a destra vuoi ottenere un valore?
A6: Dove lo vuoi cercare?
A7: Vuoi una corrispondenza esatta o approssimativa?
A8: Nella cella D22 immetti =CERCA.VERT(C22;C17:D20;2;FALSO). La risposta corretta per Mele è 50. CERCA.VERT ha cercato il valore Mele, l'ha trovato e quindi ha restituito la quantità una colonna più a destra.
A9: Ora prova autonomamente nella sezione Carne, nella cella G22. Dovresti ottenere =CERCA.VERT(F22;F17:G20;2;FALSO).
A10: ESPERIMENTO Prova a selezionare altri articoli negli elenchi a discesa. Noterai che i valori nelle celle dei risultati vengono aggiornati immediatamente.
A11: Altri dettagli
A12: Avanti
A13: CERCA.VERT e #N/D
A14: Presto o tardi ti capiterà che CERCA.VERT non riesca a trovare ciò che hai chiesto e restituisca un errore (#N/D). Questo può succedere, ad esempio, se il valore di ricerca non esiste oppure se la cella di riferimento non contiene ancora un valore.
A15: Se sai che il valore di ricerca esiste, ma vuoi nascondere l'errore se la cella di ricerca è vuota, puoi usare l'istruzione SE. In questo caso, integriamo la formula CERCA.VERT esistente nella cella D43 in questo modo: =SE(C43="";"";CERCA.VERT(C43;C37:D41;2;FALSO)) Questo significa: se la cella C43 equivale a niente (""), non restituire niente, altrimenti restituisci i risultati di CERCA.VERT. Nota la seconda parentesi di chiusura alla fine della formula, che conclude l'istruzione SE.
A16: Se non sei certo che il valore di ricerca esista ma vuoi comunque nascondere l'errore #N/D, puoi usare una funzione di gestione degli errori denominata SE.ERRORE nella cella G43: =SE.ERRORE(CERCA.VERT(F43;F37:G41;2;FALSO);""). SE.ERRORE indica: se CERCA.VERT restituisce un risultato valido, visualizzalo, altrimenti non visualizzare niente (""). In questo caso non viene visualizzato niente (""), ma si possono anche usare numeri (0,1, 2 e così via) o un testo, ad esempio "La formula non è corretta". | C16: Frutta | D16: Quantità | F16: Carne | G16: Quantità
A17: DETTAGLIO IMPORTANTE SE.ERRORE è un gestore di errori che rimuove la visualizzazione di tutti gli errori che possono essere generati dalla formula. Questo può causare problemi se Excel notifica che nella formula è presente un errore effettivo che deve essere risolto. In generale è preferibile non aggiungere gestori di errori alle formule se non si è assolutamente certi che funzionino correttamente. | C17: Mele | D17: 50 | F17: Manzo | G17: 50
A18: Indietro | C18: Arance | D18: 20 | F18: Pollo | G18: 30
A19: Avanti | C19: Banane | D19: 60 | F19: Maiale | G19: 10
A20: Altre informazioni sul Web | C20: Limoni | D20: 40 | F20: Pesce | G20: 50
A21: Informazioni complete sulla funzione CERCA.VERT
A22: Informazioni complete sulle funzioni INDICE/CONFRONTA | C22: Mele | F22: Maiale
A23: Informazioni complete sulla funzione SE.ERRORE
A24: Usare le tabelle pivot per analizzare i dati di un foglio di lavoro
A25: Formazione gratuita su Excel disponibile online
C35: Se la funzione SOMMA nella cella D42 potesse parlare, direbbe: Somma i valori nelle celle D38, D39, D40 e D41.
C36: Articolo | D36: Quantità | F36: Articolo | G36: Quantità
C37: Pane | D37: 50 | F37: Pane | G37: 50
C38: Ciambelle | D38: 100 | F38: Ciambelle | G38: 100
C39: Biscotti | D39: 40 | F39: Biscotti | G39: 40
C40: Torte | D40: 50 | F40: Torte | G40: 50
C41: Crostate | D41: 20 | F41: Crostate | G41: 20
D43: =VLOOKUP(C43,C37:D41,2,FALSE) ->  | F43: Pasticceria | G43: =IFERROR(VLOOKUP(F43,F37:G41,2,FALSE),"") -> 

Sheet Funzioni condizionali
A1: Funzioni condizionali: SOMMA.SE
A2: Le funzioni condizionali consentono di calcolare la somma, la media e il conteggio o di ottenere il valore minimo o massimo di un intervallo in base a una condizione o a un criterio specificato. Ad esempio, si può calcolare quante mele ci sono tra tutti i frutti inclusi nell'elenco. Oppure il numero di arance di tipo Florida. | C2: Frutta | D2: Quantità | F2: Frutta | G2: Tipo | H2: Quantità | Z2: Frutta | AB2: Mele | AD2: Arance | AF2: Banane | AH2: Limoni
A3: SOMMA.SE consente di sommare in un intervallo sulla base di un criterio specifico cercato in un altro intervallo, come il numero di mele. Seleziona la cella D17 e digita =SOMMA.SE(C3:C14;C17;D3:D14). La funzione SOMMA.SE è strutturata in questo modo: | C3: Mele | D3: 50 | F3: Mele | G3: Fuji | H3: 50 | Z3: Mele | AB3: Fuji | AD3: Florida | AF3: Cavendish | AH3: Rough
A4: =SUMIF(C3:C14,C17,D3:D14) -> 150 | C4: Arance | D4: 20 | F4: Arance | G4: Florida | H4: 20 | Z4: Arance | AB4: Honeycrisp | AD4: Navel | AF4: Lady Finger | AH4: Eureka
A5: Quale intervallo vuoi esaminare? | C5: Banane | D5: 60 | F5: Banane | G5: Cavendish | H5: 60 | Z5: Banane
A6: Quale valore (testo o numero) vuoi cercare? | C6: Limoni | D6: 40 | F6: Limoni | G6: Rough | H6: 40 | Z6: Limoni
A7: Per ogni corrispondenza trovata, quale intervallo vuoi sommare? | C7: Mele | D7: 50 | F7: Mele | G7: Honeycrisp | H7: 50
A8: SOMMA.PIÙ.SE equivale a SOMMA.SE, ma consente di usare più criteri. Quindi, in questo esempio, è possibile cercare frutta e tipo, anziché solo frutta. Seleziona la cella H17 e digita =SOMMA.PIÙ.SE(H3:H14;F3:F14;F17;G3:G14;G17). La funzione SOMMA.PIÙ.SE è strutturata in questo modo: | C8: Arance | D8: 20 | F8: Arance | G8: Navel | H8: 20
A9: =SOMMA.PIÙ.SE(H3:H14;F3:F14;F17;G3:G14;G17) | C9: Banane | D9: 60 | F9: Banane | G9: Lady Finger | H9: 60
A10: Quale intervallo vuoi sommare? | C10: Limoni | D10: 40 | F10: Limoni | G10: Eureka | H10: 40
A11: Questo è il primo intervallo in cui cercare corrispondenze | C11: Mele | D11: 50 | F11: Mele | G11: Honeycrisp | H11: 50
A12: Questo è il criterio per la prima corrispondenza | C12: Arance | D12: 20 | F12: Arance | G12: Navel | H12: 20
A13: Questo è il secondo intervallo in cui cercare corrispondenze | C13: Banane | D13: 60 | F13: Banane | G13: Cavendish | H13: 60
A14: Questo è il criterio per la seconda corrispondenza | C14: Limoni | D14: 40 | F14: Limoni | G14: Eureka | H14: 40
A15: L'ESPERTO SUGGERISCE Ognuna delle celle Frutta e Tipo include un elenco a discesa in cui è possibile selezionare diversi frutti. Prova e osserva come le formule vengono aggiornate automaticamente.
A16: Altri dettagli | C16: Frutta | D16: SOMMA.SE | F16: Frutta | G16: Tipo | H16: SOMMA.PIÙ.SE
A17: Passaggio successivo | C17: Mele | F17: Arance | G17: Florida
A18: Funzioni condizionali: CONTA.SE
A19: CONTA.SE e CONTA.PIÙ.SE consentono di contare i valori in un intervallo in base a un determinato criterio. Sono un po' diverse dalle altre funzioni SE e PIÙ.SE in quanto hanno solo un intervallo di criteri e criteri. Non valutano un intervallo per poi cercare in un altro per riepilogare.
A20: Seleziona la cella D64 e digita =CONTA.SE(C50:C61;C64). La funzione CONTA.SE è strutturata in questo modo:
A21: =CONTA.SE(C50:C61;C64)
A22: Quale intervallo vuoi esaminare?
A23: Quale valore (testo o numero) vuoi cercare?
A24: CONTA.PIÙ.SE equivale a SOMMA.SE, ma consente di usare più criteri. Pertanto, in questo esempio, è possibile cercare frutta e tipo, anziché solo frutta. Seleziona la cella H64 e digita =CONTA.PIÙ.SE(F50:F61;F64;G50:G61;G64). La funzione CONTA.PIÙ.SE è strutturata in questo modo:
A25: =CONTA.PIÙ.SE(F50:F61;F64;G50:G61;G64)
A26: Questo è il primo intervallo da contare
A27: Questo è il criterio per la prima corrispondenza
A28: Questo è il secondo intervallo da contare
A29: Questo è il criterio per la seconda corrispondenza
A30: Altri dettagli
A31: Avanti
A32: Altre funzioni condizionali
A33: Finora abbiamo visto le funzioni SOMMA.SE, SOMMA.PIÙ.SE, CONTA.SE e CONTA.PIÙ.SE. Ora puoi provare autonomamente con altre funzioni, come MEDIA.SE/MEDIA.PIÙ.SE, MAX.PIÙ.SE, MIN.PIÙ.SE. Sono tutte strutturate nello stesso modo, quindi una volta scritta una formula puoi semplicemente sostituire il nome della funzione con quello che vuoi usare. Abbiamo scritto tutte le funzioni necessarie per la cella E106, pronte da copiare/incollare. In alternativa, puoi provare a digitarle manualmente per esercitarti. SOMMA.SE =SOMMA.SE(C92:C103;C106;E92:E103) SOMMA.PIÙ.SE =SOMMA.PIÙ.SE(E92:E103;C92:C103;C106;D92:D103;D106) MEDIA.SE =MEDIA.SE(C92:C103;C106;E92:E103) MEDIA.PIÙ.SE =MEDIA.PIÙ.SE(E92:E103;C92:C103;C106;D92:D103;D106) CONTA.SE =CONTA.SE(C92:C103;C106) CONTA.PIÙ.SE =CONTA.PIÙ.SE(C92:C103;C106;D92:D103;D106) MAX.PIÙ.SE =MAX.PIÙ.SE(E92:E103;C92:C103;C106;D92:D103;D106) MIN.PIÙ.SE =MIN.PIÙ.SE(E92:E103;C92:C103;C106;D92:D103;D106)
A34: Altri dettagli
A35: Avanti
A36: SOMMA.SE con un argomento valore
A37: Ecco un esempio di funzione SOMMA.SE usando "maggiore di" (>) per trovare tutti i valori che superano una determinata quantità:
A38: =SUMIF(D118:D122,">=50") -> 200
A39: Somma alcuni valori in base a questo criterio:
A40: ...Esamina queste celle...
A41: ...e, se il valore è maggiore di 50, sommalo.
A42: NOTA: se ti ritrovi a creare molte formule condizionali, tieni presente che una tabella pivot è una soluzione migliore. Per saperne di più, leggi questo articolo sulle tabelle pivot.
A43: Altre informazioni sul Web
A44: Informazioni complete sulla funzione SOMMA.SE
A45: Informazioni complete sulla funzione SOMMA.PIÙ.SE
A46: Informazioni complete sulla funzione CONTA.SE
A47: Informazioni complete sulla funzione CONTA.PIÙ.SE
A48: Informazioni complete sulla funzione MEDIA.SE
A49: Informazioni complete sulla funzione MEDIA.PIÙ.SE | C49: Frutta | D49: Quantità | F49: Frutta | G49: Tipo | H49: Quantità
A50: Informazioni complete sulla funzione MIN.PIÙ.SE | C50: Mele | D50: 50 | F50: Mele | G50: Fuji | H50: 50
A51: Informazioni complete sulla funzione MAX.PIÙ.SE | C51: Arance | D51: 20 | F51: Arance | G51: Florida | H51: 20
A52: Creare un elenco a discesa | C52: Banane | D52: 60 | F52: Banane | G52: Cavendish | H52: 60
A53: Formazione gratuita su Excel disponibile online | C53: Limoni | D53: 40 | F53: Limoni | G53: Rough | H53: 40
A54: Torna all'inizio | C54: Mele | D54: 50 | F54: Mele | G54: Honeycrisp | H54: 50
A55: Avanti | C55: Arance | D55: 20 | F55: Arance | G55: Navel | H55: 20
C56: Banane | D56: 60 | F56: Banane | G56: Lady Finger | H56: 60
C57: Limoni | D57: 40 | F57: Limoni | G57: Eureka | H57: 40
C58: Mele | D58: 50 | F58: Mele | G58: Honeycrisp | H58: 50
C59: Arance | D59: 20 | F59: Arance | G59: Navel | H59: 20
C60: Banane | D60: 60 | F60: Banane | G60: Cavendish | H60: 60
C61: Limoni | D61: 40 | F61: Limoni | G61: Eureka | H61: 40
C63: Frutta | D63: CONTA.SE | F63: Frutta | G63: Tipo | H63: CONTA.PIÙ.SE
C64: Mele | D64: =COUNTIF(C50:C61,C64) -> 3 | F64: Arance | G64: Florida | H64: =COUNTIFS(F50:F61,F64,G50:G61,G64) -> 1
C91: Frutta | D91: Tipo | E91: Quantità
C92: Mele | D92: Fuji | E92: 50
C93: Arance | D93: Florida | E93: 20
C94: Banane | D94: Cavendish | E94: 60
C95: Limoni | D95: Rough | E95: 40
C96: Mele | D96: Honeycrisp | E96: 50
C97: Arance | D97: Navel | E97: 20
C98: Banane | D98: Lady Finger | E98: 60
C99: Limoni | D99: Eureka | E99: 40
C100: Mele | D100: Honeycrisp | E100: 50
C101: Arance | D101: Navel | E101: 20
C102: Banane | D102: Cavendish | E102: 60
C103: Limoni | D103: Eureka | E103: 40
C105: Frutta | D105: Tipo | E105: Prova
C106: Limoni | D106: Eureka | E106: =AVERAGEIFS(E92:E103,C92:C103,C106,D92:D103,D106) -> 40
C117: Articolo | D117: Quantità
C118: Pane | D118: 50
C119: Ciambelle | D119: 100
C120: Biscotti | D120: 40
C121: Torte | D121: 50
C122: Crostate | D122: 20
D123: =SUMIF(D118:D122,">=50") -> 200

Sheet Creazione guidata Funzione
A1: Creazione guidata Funzione
A2: Se conosci il nome della formula che vuoi usare, ma non sai con certezza come costruirla, puoi usare la Creazione guidata Funzione.
A3: Seleziona la cella D10 e passa a Formule > Inserisci funzione > digita CERCA.VERT nella casella Cerca una funzione e scegli Vai. Quando viene evidenziato CERCA.VERT, fai clic su OK nella parte inferiore. Quando selezioni una funzione nell'elenco, Excel ne visualizza la sintassi.
A4: Immetti quindi gli argomenti della funzione nelle caselle di testo corrispondenti. Ogni volta che ne immetti uno, Excel lo valuta e mostra il relativo risultato, con il risultato finale nella parte inferiore. Man mano che accedi alle singole sezioni, i criteri per ogni argomento vengono elencati nella parte inferiore del modulo. Al termine scegli OK. Excel immette automaticamente la formula. | C4: Frutta | D4: Quantità
A5: GUARDA QUI Dovresti ottenere =CERCA.VERT(C10;C5:D8;2;FALSO) | C5: Mele | D5: 50
A6: INFORMAZIONI UTILI Puoi digitare riferimenti di cella e intervallo oppure selezionarli con il mouse. | C6: Arance | D6: 20
A7: INFORMAZIONI UTILI Quando accedi alla sezione dei singoli argomenti, la descrizione dell'argomento viene visualizzata nella parte inferiore del modulo, sopra il risultato della formula. | C7: Banane | D7: 60
A8: Indietro | C8: Limoni | D8: 40
A9: Avanti
A10: Altre informazioni sul Web | C10: Mele | D10: =VLOOKUP(C10,C5:D8,2,FALSE) -> 50
A11: Panoramica delle formule in Excel
A12: Funzioni di Excel (in base alla categoria)
A13: Funzioni di Excel (in ordine alfabetico)
A14: Formazione gratuita su Excel disponibile online

Sheet Errori nelle formule
A1: Correzione degli errori nelle formule
A2: Se una formula contiene un errore, Excel mostra #NomeErrore. Gli errori possono essere utili perché indicano che qualcosa non funziona correttamente, ma possono essere difficili da risolvere. Per fortuna ci sono diverse opzioni che facilitano l'individuazione dell'origine dell'errore e la relativa correzione.
A3: Controllo errori: vai a Formule > Controllo errori. Viene visualizzata una finestra di dialogo che indica la causa generale dell'errore specifico. L'errore #N/D cella D9 è causato dal fatto che non esiste un valore corrispondente a "Mela". Puoi risolvere l'errore usando un valore esistente, eliminare l'errore con SE.ERRORE oppure ignorarlo, contando sul fatto scomparirà quando userai un valore effettivamente esistente. | C3: Frutta | D3: Quantità
A4: Se fai clic su Informazioni sull'errore, viene visualizzato un argomento della Guida relativo al messaggio di errore. Se fai clic su Mostra passaggi del calcolo, viene visualizzata la finestra di dialogo Valuta formula. | C4: Mele | D4: 50
A5: Ogni volta che fai clic su Valuta, Excel valuta la formula una sezione alla volta. Non specifica necessariamente perché si verifica un errore, ma indica dove. A quel punto, esamina l'argomento della Guida per capire qual è il problema presente nella formula. | C5: Arance | D5: 20
A6: ESPERIMENTO Qual è il problema qui? Suggerimento: vogliamo calcolare la SOMMA di tutti gli articoli. | C6: Banane | D6: 60
A7: INFORMAZIONI UTILI Fai clic su Opzioni per impostare le regole per i casi in cui gli errori in Excel vengono visualizzati o ignorati. | C7: Limoni | D7: 40
A8: Indietro
A9: Avanti | C9: Mela | D9: =VLOOKUP(C9,C3:D7,2,FALSE) -> 
A10: Altre informazioni sul Web
A11: Rilevare gli errori nelle formule
A12: Come evitare errori nelle formule
A13: Valutare un formula annidata un passaggio alla volta
A14: Formazione gratuita su Excel disponibile online
C30: Frutta | D30: Quantità
C31: Mele | D31: 50
C32: Arance | D32: 20
C33: Banane | D33: 60
C34: Limoni | D34: 40
C36: Totale | D36: =sume(D31:D34) -> 

Sheet Altre informazioni
A1: Altre domande su Excel?
A2: Premi ALT+X e digita cosa che vuoi sapere.
A3: Vai avanti. Sono disponibili altre risorse su Excel:
A4: Community: Invia domande e mettiti in contatto con altri appassionati di Excel.
A5: Altre novità? Gli abbonati a Office 365 ricevono costantemente aggiornamenti e nuove funzionalità.
